bitfinex/quotes_SOLUSD_20220129
["timestamp","ask_amount","ask_price","bid_price","bid_amount"]
[1643488346739,3.0,96.835,96.61,12.52]
[1643488346940,3.0,96.835,96.611,142.253339]
[1643488347138,0.3016021,96.882,96.62,6.0]
[1643488347341,0.31380672,96.851,96.611,27.15169881]
[1643488347543,44.75752411,96.789,96.602,71.8893]
[1643488347740,0.30411093,96.782,96.594,2.0784601]
[1643488347947,0.30411093,96.782,96.574,2.0784601]
[1643488348140,6.0,96.779,96.574,2.0784601]
[1643488348441,6.0,96.779,96.582,2.0784601]
[1643488348442,0.25,96.778,96.582,2.0784601]
[1643488348842,42.70203727,96.771,96.593,104.7]
[1643488349045,6.0,96.761,96.604,104.7]
[1643488349243,0.25,96.76,96.614,6.0]
[1643488349442,3.0,96.792,96.614,6.0]
[1643488349443,12.52,96.86,96.614,6.0]
[1643488349645,0.32198538,96.858,96.62,12.52]
[1643488349846,3.0,96.805,96.621,0.25]
[1643488350046,3.0,96.805,96.63,6.0]
[1643488350246,34.6753427,96.804,96.631,0.25]
[1643488350473,34.6753427,96.804,96.631,6.25]
[1643488350674,6.0,96.794,96.632,2.07420607]
[1643488350881,6.0,96.794,96.633,0.25]
[1643488351075,0.25,96.793,96.642,6.0]
[1643488351275,3.0,96.777,96.643,6.25]
[1643488351475,3.0,96.875,96.65,12.52]
[1643488351676,3.0,96.875,96.66,6.0]
[1643488351876,0.30491438,96.831,96.661,104.7]
[1643488352077,3.0,96.803,96.671,6.0]
[1643488352277,3.0,96.803,96.672,0.25]
[1643488352477,42.37671237,96.802,96.672,0.25]
[1643488352680,42.62671237,96.802,96.662,2.06996084]
[1643488352879,6.0,96.792,96.633,104.7]
[1643488353079,6.0,96.792,96.644,104.7]
[1643488353277,0.25,96.791,96.645,0.25]
[1643488353877,0.25,96.791,96.619,2.06996084]
[1643488353878,0.30283517,96.775,96.619,2.06996084]
[1643488354079,0.30283517,96.775,96.53,12.52]
[1643488354080,0.32234884,96.746,96.53,12.52]
[1643488354277,0.31869193,96.743,96.513,3.0]
[1643488354479,0.31869193,96.743,96.545,2.06996084]
[1643488354677,6.0,96.735,96.545,2.06996084]
[1643488354878,0.25,96.734,96.545,2.06996084]
[1643488355080,6.0,96.735,96.545,2.06996084]
[1643488355081,6.0,96.733,96.545,2.06996084]
[1643488355281,3.0,96.718,96.582,0.25]
[1643488355481,43.58698774,96.717,96.582,0.25]
[1643488356378,6.0,96.707,96.583,19.43809815]
[1643488356580,0.25,96.706,96.583,21.50168146]
[1643488356782,0.31508209,96.694,96.583,2.06358331]
[1643488356982,0.32179612,96.665,96.47,2.40441368]
[1643488357382,0.32179612,96.665,96.49,21.50168146]
[1643488357583,0.25,96.689,96.491,104.8]
[1643488357784,3.0,96.72,96.5,12.52]
[1643488357982,0.30647271,96.784,96.501,6.1]
[1643488358184,96.9307,96.787,96.51,6.0]
[1643488358383,3.0,96.779,96.52,12.52]
[1643488358583,23.8163,96.787,96.53,6.0]
[1643488358782,3.0,96.779,96.54,12.52]
[1643488358983,23.8163,96.787,96.55,6.0]
[1643488359186,23.8163,96.787,96.56,28.033]
[1643488359387,3.0,96.835,96.57,3.0]
[1643488359587,0.30986827,96.855,96.58,12.52]
[1643488359792,3.0,96.832,96.581,0.25]
[1643488359984,35.98454542,96.831,96.59,6.0]
[1643488360188,35.98454542,96.831,96.6,28.026]
[1643488360389,34.60972691,96.816,96.611,16.08051537]
[1643488360688,34.60972691,96.816,96.622,104.7]
[1643488360895,34.60972691,96.816,96.63,12.52]
[1643488361086,34.60972691,96.816,96.64,6.0]
[1643488361485,34.60972691,96.816,96.641,16.98280247]
[1643488361689,34.60972691,96.816,96.651,6.0]
[1643488361885,34.60972691,96.816,96.652,104.7]
[1643488362086,34.60972691,96.816,96.662,6.0]
[1643488362286,34.60972691,96.816,96.663,104.7]
[1643488362488,34.60972691,96.816,96.663,124.13809815]
[1643488362686,0.32398968,96.853,96.673,6.0]
[1643488362886,1997.32497734,96.9,96.673,6.0]
[1643488363088,1997.32497734,96.9,96.68,6.0]
[1643488363286,1997.32497734,96.9,96.69,12.52]
[1643488363486,0.30928531,96.89,96.684,6.0]
[1643488363692,0.30089148,96.852,96.681,43.47149028]
[1643488363892,0.30089148,96.852,96.691,6.0]
[1643488364090,6.0,96.88,96.692,104.7]
[1643488364293,0.31378731,96.86,96.692,104.7]
[1643488364690,34.08930303,96.834,96.692,104.7]
[1643488364892,0.25,96.833,96.692,121.23560157]
[1643488365088,6.0,96.824,96.692,104.7]
[1643488365290,0.25,96.823,96.692,104.7]
[1643488365894,0.25,96.823,96.693,16.53560157]
[1643488366289,0.25,96.823,96.655,104.7]
[1643488366491,0.30607201,96.812,96.656,16.53560157]
[1643488366692,0.31225821,96.787,96.637,16.53560157]
[1643488366892,0.31225821,96.787,96.638,0.25]
[1643488367093,0.31225821,96.787,96.602,41.7206121]
[1643488367291,0.30993628,96.763,96.603,7.33580127]
[1643488367494,0.30993628,96.763,96.6,10.09]
[1643488367695,45.3339714,96.786,96.6,10.09]
[1643488367696,6.0,96.776,96.604,17.84920926]
[1643488367894,0.25,96.775,96.604,36.44452917]
[1643488368094,0.25,96.775,96.605,25.93112118]
[1643488368297,0.25,96.775,96.62,12.52]
[1643488368494,0.25,96.775,96.63,6.0]
[1643488368694,0.25,96.775,96.631,104.7]
[1643488368897,6.0,96.776,96.631,104.7]
[1643488369196,6.0,96.776,96.632,7.33580127]
[1643488369395,0.25,96.775,96.632,28.24861776]
[1643488369800,0.25,96.775,96.632,7.33580127]
[1643488369994,6.0,96.776,96.632,7.33580127]
[1643488371296,3.25,96.775,96.632,7.33580127]
[1643488371496,6.0,96.765,96.633,104.7]
[1643488371707,35.80634068,96.764,96.633,104.7]
[1643488371897,3.0,96.748,96.634,7.33580127]
[1643488372100,42.10687232,96.737,96.634,7.33580127]
[1643488372301,42.10687232,96.737,96.633,104.7]
[1643488372500,42.10687232,96.737,96.577,6.508692]
[1643488372501,0.31873733,96.726,96.577,6.508692]
[1643488372700,0.31873733,96.726,96.555,6.508692]
[1643488372904,33.60042225,96.711,96.573,18.85309815]
[1643488373104,6.0,96.701,96.573,18.85309815]
[1643488373505,6.0,96.701,96.574,104.7]
[1643488373706,6.0,96.701,96.574,104.95]
[1643488373903,6.0,96.701,96.575,26.30310642]
[1643488374202,6.0,96.701,96.576,123.55309815]
[1643488374504,33.60042225,96.711,96.586,110.7]
[1643488374701,33.60042225,96.711,96.617,4.17503324]
[1643488374902,3.0,96.758,96.618,0.25]
[1643488375103,3.0,96.758,96.618,19.10309815]
[1643488375304,12.52,96.84,96.619,2.05328312]
[1643488375503,12.52,96.84,96.687,2.78175592]
[1643488375504,3.0,96.828,96.687,2.78175592]
[1643488375702,23.8632,96.799,96.693,2.78175592]
[1643488375906,36.69501534,96.798,96.69,2.78175592]
[1643488376503,6.0,96.788,96.692,2.78175592]
[1643488376722,6.0,96.788,96.698,2.78175592]
[1643488376923,0.25,96.787,96.689,2.78175592]
[1643488377123,0.25,96.787,96.687,2.78175592]
[1643488377330,0.25,96.787,96.69,2.78175592]
[1643488377525,0.25,96.787,96.689,2.78175592]
[1643488377723,0.32143428,96.775,96.679,2.78175592]
[1643488377922,0.32143428,96.775,96.676,2.78175592]
[1643488378123,0.32143428,96.775,96.674,2.78175592]
[1643488378323,0.32143428,96.775,96.675,2.78175592]
[1643488378624,6.0,96.769,96.675,2.78175592]
[1643488378827,0.25,96.768,96.68,2.78175592]
[1643488379025,0.25,96.768,96.675,2.78175592]
[1643488379426,0.25,96.768,96.674,2.78175592]
[1643488379630,6.0,96.767,96.675,2.78175592]
[1643488379826,6.0,96.767,96.653,4.17503324]
[1643488379827,0.25,96.766,96.673,2.78175592]
[1643488380027,0.31123011,96.743,96.667,0.00175592]
[1643488380331,0.31123011,96.743,96.619,4.17503324]
[1643488380728,0.31123011,96.743,96.604,4.17503324]
[1643488380928,6.0,96.75,96.604,4.17503324]
[1643488381132,0.75,96.743,96.605,0.25]
[1643488381329,44.51540935,96.742,96.605,21.1562369]
[1643488381528,6.0,96.732,96.615,6.0]
[1643488381730,6.0,96.732,96.618,4.17503324]
[1643488382127,0.31439222,96.725,96.604,4.17503324]
[1643488382328,0.31533125,96.699,96.604,4.17503324]
[1643488383129,6.0,96.714,96.604,4.17503324]
[1643488383329,0.25,96.713,96.598,4.17503324]
[1643488383528,0.25,96.713,96.606,104.7]
[1643488383728,0.25,96.713,96.607,7.45000827]
[1643488383931,0.25,96.713,96.598,4.17503324]
[1643488384128,6.0,96.714,96.606,0.25]
[1643488384334,6.0,96.714,96.601,4.17503324]
[1643488384729,6.0,96.714,96.606,16.71615713]
[1643488385132,0.32063223,96.7,96.601,4.17503324]
[1643488385629,0.31669772,96.666,96.576,4.17503324]
[1643488385837,0.30332047,96.651,96.576,4.17503324]
[1643488386030,0.30332047,96.651,96.555,0.1]
[1643488386031,13.54332047,96.651,96.559,4.17503324]
[1643488386229,44.92507272,96.65,96.559,4.17503324]
[1643488386434,6.0,96.641,96.529,4.17503324]
[1643488386636,0.31051625,96.623,96.529,4.17503324]
[1643488387030,6.25,96.64,96.529,4.17503324]
[1643488387031,6.0,96.638,96.529,4.17503324]
[1643488387235,39.2916893,96.629,96.529,4.17503324]
[1643488387430,6.0,96.638,96.529,4.17503324]
[1643488387635,3.0,96.682,96.539,4.17503324]
[1643488387928,3.0,96.682,96.54,19.10309815]
[1643488388130,6.0,96.641,96.541,0.1]
[1643488388329,42.22346883,96.64,96.541,0.1]
[1643488388529,6.0,96.63,96.52,0.1]
[1643488388731,6.0,96.63,96.517,4.17503324]
[1643488388931,0.25,96.629,96.517,4.17503324]
[1643488389131,0.25,96.629,96.518,18.85309815]
[1643488389330,0.25,96.629,96.519,0.1]
[1643488389829,0.25,96.629,96.52,18.85309815]
[1643488390130,0.25,96.629,96.521,0.1]
[1643488390732,0.30274141,96.614,96.502,4.17503324]
[1643488390930,0.30274141,96.614,96.5,0.1]
[1643488391129,6.25,96.629,96.5,0.1]
[1643488391535,6.25,96.629,96.498,0.1]
[1643488391939,0.30402513,96.613,96.498,0.1]
[1643488392130,6.0,96.607,96.498,0.1]
[1643488392335,0.25,96.606,96.498,0.1]
[1643488392533,6.25,96.606,96.498,0.1]
[1643488392734,6.25,96.606,96.498,0.35]
[1643488392933,6.25,96.606,96.498,0.1]
[1643488393333,6.25,96.606,96.498,0.35]
[1643488393533,6.25,96.606,96.498,0.1]
[1643488393932,6.25,96.606,96.48,0.35]
[1643488394134,6.0,96.604,96.481,4.49999021]
[1643488394335,0.25,96.603,96.481,4.49999021]
[1643488394534,34.45930764,96.595,96.481,4.49999021]
[1643488394735,0.25,96.594,96.481,4.49999021]
[1643488394933,0.25,96.594,96.472,0.49282624]
[1643488394934,0.30931939,96.573,96.472,0.49282624]
[1643488395139,0.30931939,96.573,96.473,4.50556151]
[1643488395333,1.05931939,96.573,96.473,4.50556151]
[1643488395534,6.0,96.563,96.473,4.50556151]
[1643488395738,0.30538915,96.54,96.489,0.00829696]
[1643488395941,63.0,96.538,96.433,4.17503324]
[1643488396235,6.0,96.528,96.43,36.86791283]
[1643488396435,7.96395206,96.537,96.431,4.51062958]
[1643488396634,0.25,96.527,96.431,4.51062958]
[1643488396836,7.96395206,96.537,96.432,18.85309815]
[1643488397037,6.0,96.527,96.432,20.90644993]
[1643488397234,6.0,96.527,96.433,104.7]
[1643488397448,3.0,96.599,96.433,123.55309815]
[1643488397637,238.1649,96.609,96.434,23.61100839]
[1643488397834,190.9395,96.609,96.443,6.0]
[1643488398034,3.0,96.617,96.445,6.0]
[1643488398234,27.88875992,96.616,96.451,62.81]
[1643488398437,27.88875992,96.616,96.454,6.0]
[1643488398636,27.88875992,96.616,96.463,33.81520839]
[1643488398839,6.0,96.606,96.464,109.45791024]
[1643488399036,27.88875992,96.616,96.474,110.7]
[1643488399235,27.88875992,96.616,96.475,4.50791024]
[1643488399439,24.3209,96.648,96.475,14.26571116]
[1643488399638,24.3209,96.648,96.485,6.0]
[1643488399837,24.3209,96.648,96.486,0.25]
[1643488400036,24.3209,96.648,96.487,4.50791024]
[1643488400237,0.3004759,96.631,96.488,0.25]
[1643488400439,0.3004759,96.631,96.488,32.88453702]
[1643488400637,0.31251951,96.6,96.488,32.88453702]
[1643488400839,0.31251951,96.6,96.391,6.508692]
[1643488400840,0.31251951,96.6,96.435,4.17503324]
[1643488401040,0.30010905,96.582,96.421,4.17503324]
[1643488401239,3.0,96.572,96.421,4.17503324]
[1643488401438,3.0,96.572,96.422,0.25]
[1643488401740,6.0,96.562,96.423,4.51123275]
[1643488401939,31.45414851,96.561,96.423,4.51123275]
[1643488402242,6.0,96.551,96.424,0.25]
[1643488402638,0.25,96.55,96.425,4.51123275]
[1643488402838,0.25,96.55,96.426,0.25]
[1643488403038,0.25,96.55,96.427,4.51123275]
[1643488403238,0.30330882,96.546,96.427,4.51123275]
[1643488403539,0.31329319,96.513,96.411,0.06953356]
[1643488403739,0.30330882,96.546,96.411,0.06953356]
[1643488404139,1.41471497,96.539,96.411,0.06953356]
[1643488404342,0.25,96.538,96.411,0.06953356]
[1643488404539,0.32391812,96.521,96.411,0.06953356]
[1643488404941,0.25,96.528,96.411,0.06953356]
[1643488405142,12.83251951,96.6,96.412,20.90644993]
[1643488405342,0.25,96.538,96.413,4.50716414]
[1643488405542,3.0,96.527,96.413,23.61026229]
[1643488405746,3.0,96.527,96.414,4.50716414]
[1643488405943,6.0,96.517,96.414,4.50716414]
[1643488406149,6.0,96.517,96.411,0.06953356]
[1643488406150,23.4599146,96.516,96.411,34.38295065]
[1643488406345,23.7099146,96.516,96.411,34.38295065]
[1643488406646,3.0,96.502,96.411,34.38295065]
[1643488406845,0.25,96.501,96.411,0.00953356]
[1643488407048,0.31690068,96.469,96.411,0.00953356]
[1643488407644,0.32009504,96.443,96.411,0.00953356]
[1643488408544,3.0,96.438,96.411,0.00953356]
[1643488408945,6.0,96.428,96.411,0.00953356]
[1643488409345,23.7099146,96.427,96.411,0.00953356]
[1643488409547,6.0,96.417,96.411,0.00953356]
[1643488409750,0.25,96.416,96.411,0.00953356]
[1643488409949,12.50541847,96.427,96.411,0.00953356]
[1643488410253,63.0,96.424,96.362,1.39846977]
[1643488410449,63.0,96.424,96.363,1.39846977]
[1643488410649,3.0,96.438,96.359,1.39846977]
[1643488410850,24.2452,96.493,96.371,1.39846977]
[1643488411049,47.6931,96.528,96.393,1.39846977]
[1643488411050,113.0802,96.515,96.393,1.39846977]
[1643488411251,3.0,96.504,96.402,1.39846977]
[1643488411451,24.287,96.528,96.409,1.39846977]
[1643488411650,3.0,96.523,96.412,1.39846977]
[1643488411851,3.0,96.523,96.42,1.39846977]
[1643488412052,3.0,96.523,96.425,1.39846977]
[1643488412254,24.287,96.528,96.438,1.39846977]
[1643488412553,24.287,96.528,96.442,40.2120316]
[1643488412753,24.287,96.528,96.443,1.64846977]
[1643488412953,24.287,96.528,96.444,1.39846977]
[1643488413154,24.287,96.528,96.457,1.39846977]
[1643488413359,24.287,96.528,96.443,17.53515371]
[1643488413360,3.0,96.572,96.459,1.39846977]
[1643488413655,0.30252839,96.554,96.46,1.39846977]
[1643488413954,11.17252839,96.554,96.45,1.39846977]
[1643488414153,3.0,96.54,96.439,1.39846977]
[1643488414354,6.0,96.544,96.443,1.39846977]
[1643488414555,6.0,96.544,96.45,1.39846977]
[1643488414758,6.0,96.562,96.455,43.09149331]
[1643488415053,6.0,96.558,96.456,1.39846977]
[1643488415454,6.0,96.558,96.461,1.39846977]
[1643488415654,6.0,96.558,96.463,1.39846977]
[1643488415854,6.0,96.558,96.461,1.39846977]
[1643488416057,0.32481975,96.53,96.461,1.39846977]
[1643488416255,0.32481975,96.53,96.449,1.39846977]
[1643488416454,0.32481975,96.53,96.44,1.39846977]
[1643488416655,6.0,96.561,96.385,4.17503324]
[1643488416656,6.0,96.56,96.441,1.39846977]
[1643488416853,6.0,96.56,96.418,2.05335178]
[1643488416854,3.0,96.557,96.456,1.39846977]
[1643488417155,6.0,96.547,96.446,1.39846977]
[1643488417361,0.3100272,96.523,96.444,1.39846977]
[1643488417884,3.0,96.525,96.442,1.39846977]
[1643488418086,6.0,96.515,96.443,45.10728492]
[1643488418287,0.25,96.514,96.438,1.39846977]
[1643488418488,6.25,96.514,96.435,1.39846977]
[1643488418889,6.0,96.513,96.435,1.39846977]
[1643488419089,6.0,96.504,96.439,1.39846977]
[1643488419293,6.62749859,96.503,96.44,40.6967209]
[1643488419489,6.0,96.493,96.441,1.39846977]
[1643488419690,0.25,96.503,96.443,1.39846977]
[1643488419889,6.0,96.502,96.44,0.00846977]
[1643488420087,6.0,96.498,96.376,4.17503324]
[1643488420288,6.0,96.498,96.373,4.21758133]
[1643488420289,0.25,96.497,96.373,4.21758133]
[1643488420486,6.0,96.494,96.373,4.21758133]
[1643488420688,0.32003521,96.446,96.373,4.21758133]
[1643488420887,0.32003521,96.446,96.358,0.1]
[1643488421088,0.32003521,96.446,96.323,4.17503324]
[1643488421089,0.31594754,96.411,96.323,4.17503324]
[1643488421290,140.7001,96.489,96.323,4.17503324]
[1643488421489,3.0,96.489,96.354,2.05895004]
[1643488421688,6.0,96.575,96.354,2.05895004]
[1643488421689,3.0,96.512,96.354,2.05895004]
[1643488421893,146.63681029,96.533,96.356,62.81]
[1643488422089,146.63681029,96.533,96.39,63.0]
[1643488422090,44.79186445,96.533,96.39,63.0]
[1643488422393,15.12953395,96.533,96.401,125.81]
[1643488422592,35.65277154,96.594,96.412,62.81]
[1643488422791,24.0409,96.623,96.421,62.81]
[1643488423094,24.0409,96.623,96.432,62.81]
[1643488423293,24.0409,96.623,96.433,11.41302372]
[1643488423492,6.30551227,96.613,96.443,6.0]
[1643488423692,6.30551227,96.613,96.444,4.180579]
[1643488423897,0.25,96.612,96.451,6.0]
[1643488424094,6.25,96.612,96.454,6.0]
[1643488424292,6.25,96.612,96.455,104.95]
[1643488424493,6.0,96.603,96.456,4.180579]
[1643488424692,6.0,96.612,96.456,4.180579]
[1643488424895,6.0,96.612,96.457,2.31125688]
[1643488425093,6.0,96.612,96.457,0.25]
[1643488425291,6.0,96.612,96.458,4.180579]
[1643488425795,0.31793027,96.577,96.411,130.32923324]
[1643488426092,0.31793027,96.577,96.414,108.90109345]
[1643488426294,0.31793027,96.577,96.414,104.7]
[1643488426492,0.31793027,96.577,96.414,106.76125688]
[1643488426693,0.31793027,96.577,96.415,2.06125688]
[1643488426894,0.31793027,96.577,96.416,0.25]
[1643488427195,0.31793027,96.577,96.417,2.06125688]
[1643488427395,0.31793027,96.577,96.418,0.25]
[1643488427798,0.31793027,96.577,96.414,104.7]
[1643488427993,0.31997799,96.549,96.414,104.7]
[1643488428194,0.32045301,96.54,96.414,104.7]
[1643488428596,6.0,96.538,96.414,104.7]
[1643488428797,0.25,96.537,96.414,104.7]
[1643488428995,6.0,96.53,96.414,104.7]
[1643488429196,44.18299116,96.529,96.414,104.7]
[1643488429395,44.43299116,96.529,96.414,104.7]
[1643488429594,44.43299116,96.529,96.36,530.64911243]
[1643488429595,6.0,96.519,96.386,4.17503324]
[1643488429798,0.25,96.518,96.396,0.25]
[1643488429999,0.30994325,96.511,96.386,4.17503324]
[1643488430400,0.30994325,96.511,96.376,4.17503324]
[1643488430696,38.63683046,96.507,96.364,4.27503324]
[1643488430896,0.25,96.506,96.364,4.17503324]
[1643488431098,6.0,96.497,96.364,4.17503324]
[1643488431297,0.25,96.496,96.364,4.27503324]
[1643488431497,0.3075953,96.477,96.363,0.1]
[1643488431796,0.3075953,96.477,96.361,0.1]
[1643488431996,0.3075953,96.477,96.355,4.17503324]
[1643488432199,0.3075953,96.477,96.34,4.17503324]
[1643488432398,6.0,96.475,96.34,4.17503324]
[1643488432798,0.25,96.474,96.34,4.17503324]
[1643488433400,0.25,96.474,96.34,22.11971373]
[1643488433599,0.25,96.474,96.344,4.17503324]
[1643488434900,0.30486735,96.449,96.342,0.1]
[1643488435300,0.30144943,96.426,96.322,0.1]
[1643488435500,0.30144943,96.426,96.312,4.17503324]
[1643488435902,1.05144943,96.426,96.312,4.17503324]
[1643488436104,6.0,96.416,96.312,4.17503324]
[1643488436305,0.25,96.415,96.305,4.17503324]
[1643488436505,6.25,96.415,96.305,4.17503324]
[1643488436729,6.25,96.415,96.306,0.25]
[1643488437027,6.25,96.415,96.307,104.7]
[1643488437228,6.25,96.415,96.308,0.1]
[1643488437429,6.25,96.415,96.308,18.29468049]
[1643488437732,6.25,96.415,96.309,122.74468049]
[1643488438029,6.25,96.415,96.31,0.1]
[1643488438229,6.55935468,96.415,96.31,0.1]
[1643488438629,6.25,96.415,96.311,2.06125688]
[1643488438830,39.08734508,96.425,96.311,2.06125688]
[1643488439031,47.4567,96.487,96.312,17.94468049]
[1643488439032,6.0,96.415,96.312,17.94468049]
[1643488439235,6.0,96.415,96.313,0.1]
[1643488439430,6.0,96.477,96.321,5.0]
[1643488439629,6.0,96.493,96.314,17.94468049]
[1643488439830,74.2972,96.519,96.33,4.17503324]
[1643488440031,44.69583961,96.502,96.34,6.0]
[1643488440432,44.69583961,96.502,96.341,17.94468049]
[1643488440636,44.69583961,96.502,96.342,6.1]
[1643488440835,44.69583961,96.502,96.343,0.25]
[1643488441033,44.69583961,96.502,96.351,10.17503324]
[1643488441333,74.6356,96.539,96.351,10.17503324]
[1643488441334,12.52,96.6,96.361,62.81]
[1643488441632,74.6356,96.596,96.37,6.0]
[1643488441832,11.66723546,96.592,96.371,0.25]
[1643488442033,0.31739058,96.527,96.373,6.0]
[1643488442232,0.31739058,96.527,96.38,6.0]
[1643488442433,6.0,96.55,96.381,6.0]
[1643488442633,6.0,96.549,96.384,6.0]
[1643488442836,6.0,96.549,96.385,104.95]
[1643488443033,6.0,96.549,96.395,6.0]
[1643488443433,6.0,96.549,96.396,0.25]
[1643488443633,6.0,96.549,96.396,6.25]
[1643488443834,0.30713696,96.535,96.371,0.1]
[1643488444039,0.30713696,96.535,96.363,0.1]
[1643488444040,0.31267214,96.501,96.363,0.1]
[1643488444241,0.31267214,96.501,96.281,5.0]
[1643488444242,12.52,96.5,96.362,0.1]
[1643488444442,0.30713916,96.452,96.319,0.1]
[1643488445038,6.0,96.449,96.319,0.1]
[1643488445238,0.25,96.448,96.319,0.1]
[1643488445442,33.7205908,96.441,96.32,2.06125688]
[1643488445641,0.31378873,96.427,96.32,2.16125688]
[1643488445839,6.0,96.431,96.32,2.16125688]
[1643488446242,0.25,96.43,96.32,0.1]
[1643488446439,0.25,96.43,96.32,18.04468049]
[1643488446642,0.25,96.43,96.321,104.8]
[1643488446839,0.25,96.43,96.322,0.1]
[1643488448241,0.25,96.43,96.322,0.35]
[1643488448844,0.25,96.43,96.322,0.1]
[1643488449043,0.25,96.43,96.321,0.25]
[1643488449446,6.25,96.43,96.321,0.25]
[1643488449645,6.25,96.43,96.302,0.1]
[1643488449852,17.86,96.43,96.302,0.1]
[1643488450049,21.829,96.43,96.301,0.1]
[1643488450248,6.25,96.43,96.303,17.94468049]
[1643488450450,6.25,96.43,96.304,0.1]
[1643488450651,33.7205908,96.441,96.304,0.1]
[1643488450652,6.0,96.431,96.304,0.1]
[1643488450850,6.0,96.42,96.305,34.59497009]
[1643488451049,6.0,96.431,96.305,34.59497009]
[1643488451050,34.61436228,96.419,96.306,0.1]
[1643488451251,34.61436228,96.419,96.306,18.29468049]
[1643488451452,34.61436228,96.419,96.307,18.04468049]
[1643488451651,34.61436228,96.419,96.308,0.1]
[1643488451851,6.0,96.409,96.308,0.1]
[1643488452052,6.0,96.409,96.309,2.06125688]
[1643488452252,0.25,96.408,96.309,2.06125688]
[1643488452651,0.25,96.408,96.303,0.1]
[1643488452851,0.25,96.408,96.303,0.25]
[1643488453851,0.25,96.408,96.302,0.1]
[1643488454352,0.32180277,96.406,96.302,0.1]
[1643488454560,6.0,96.4,96.302,0.1]
[1643488454752,45.99172022,96.399,96.275,4.17503324]
[1643488454954,0.30079014,96.378,96.265,104.8]
[1643488455153,0.30079014,96.378,96.266,0.1]
[1643488455355,0.30079014,96.378,96.249,23.8785]
[1643488455356,0.30628514,96.344,96.265,0.1]
[1643488455554,0.30628514,96.344,96.251,0.1]
[1643488455757,0.30628514,96.344,96.239,4.17503324]
[1643488455956,0.30628514,96.344,96.234,0.1]
[1643488456156,45.70425428,96.343,96.296,0.00929588]
[1643488456355,0.25,96.342,96.296,0.00929588]
[1643488456654,6.0,96.333,96.296,0.00929588]
[1643488457054,45.70425428,96.343,96.296,0.00929588]
[1643488457253,104.7,96.412,96.296,0.00929588]
[1643488457454,6.0,96.333,96.296,0.00929588]
[1643488457655,15.593,96.34,96.296,0.00929588]
[1643488458057,6.0,96.33,96.296,0.00929588]
[1643488458357,35.88838308,96.329,96.296,0.00929588]
[1643488458555,6.0,96.319,96.296,0.00929588]
[1643488458756,0.25,96.318,96.296,0.00929588]
[1643488458958,5.75,96.319,96.296,0.00929588]
[1643488459159,35.63838308,96.329,96.296,0.00929588]
[1643488460360,6.0,96.319,96.296,0.00929588]
[1643488460859,0.25,96.318,96.296,0.00929588]
[1643488461659,6.0,96.319,96.318,0.00677686]
[1643488461858,6.0,96.319,96.296,0.00929588]
[1643488462459,109.97166574,96.297,96.296,0.00929588]
[1643488462657,6.0,96.319,96.221,0.5491841]
[1643488462658,15.6,96.29,96.28,0.00029512]
[1643488462857,0.25,96.289,96.28,0.00029512]
[1643488463057,119.1981,96.45,96.28,0.00029512]
[1643488463261,6.0,96.419,96.28,0.00029512]
[1643488463563,0.30355016,96.428,96.28,0.00029512]
[1643488463564,6.0,96.367,96.28,0.00029512]
[1643488463963,6.0,96.36,96.28,0.00029512]
[1643488464158,0.31107194,96.356,96.28,0.00029512]
[1643488464760,0.31632973,96.328,96.28,0.00029512]
[1643488464960,15.597,96.32,96.28,0.00029512]
[1643488465364,6.0,96.31,96.28,0.00029512]